fUSD/lending_fUSD_20241006
["ID","MTS","AMOUNT","RATE_DAILY","PERIOD"]
[339962818,1728229847043,-586.626125,0.00032017,7]
[339962819,1728229847054,-586.626125,0.00032017,7]
[339962820,1728229847063,-285.65462,0.00032017,7]
[339962821,1728229847072,-151.0,0.00032017,7]
[339962822,1728229847081,-151.0,0.00032017,7]
[339962823,1728229847090,-151.0,0.00032017,7]
[339962824,1728229847099,-151.0,0.00032017,7]
[339962825,1728229847108,-151.0,0.00032017,7]
[339962826,1728229847117,-1481.300386,0.00032017,7]
[339962827,1728229847126,-1481.300386,0.00032017,7]
[339962828,1728229847135,-1481.300386,0.00032017,7]
[339962829,1728229847145,-1481.300386,0.00032017,7]
[339962830,1728229847154,-1481.300386,0.00032017,7]
[339962831,1728229847164,-1481.300386,0.00032017,7]
[339962832,1728229847173,-259.61028,0.00032017,7]
[339962833,1728229847182,-151.0,0.00032017,7]
[339962834,1728229847193,-259.61028,0.00032017,7]
[339962835,1728229847202,-151.0,0.00032017,7]
[339962836,1728229847211,-259.61028,0.00032017,7]
[339962837,1728229847220,-151.0,0.00032017,7]
[339962838,1728229847229,-259.61028,0.00032017,7]
[339962839,1728229847238,-151.0,0.00032017,7]
[339962840,1728229847247,-259.61028,0.00032017,7]
[339962841,1728229847256,-151.0,0.00032017,7]
[339962842,1728229847265,-259.61028,0.00032017,7]
[339962843,1728229847274,-151.0,0.00032017,7]
[339962844,1728229847283,-151.0,0.00032017,7]
[339962845,1728229847292,-151.0,0.00032017,7]
[339962846,1728229847302,-151.0,0.00032017,7]
[339962847,1728229847310,-151.0,0.00032017,7]
[339962848,1728229847319,-151.0,0.00032017,7]
[339962849,1728229847328,-151.0,0.00032017,7]
[339962850,1728229847337,-151.0,0.00032017,7]
[339962851,1728229847346,-151.0,0.00032017,7]
[339962852,1728229847355,-151.0,0.00032017,7]
[339962853,1728229847364,-151.0,0.00032017,7]
[339962854,1728229847373,-151.0,0.00032017,7]
[339962855,1728229847382,-151.0,0.00032017,7]
[339962856,1728229847391,-151.0,0.00032017,7]
[339962857,1728229847400,-151.0,0.00032017,7]
[339962858,1728229847410,-151.0,0.00032017,7]
[339962859,1728229847420,-151.0,0.00032017,7]
[339962860,1728229847430,-151.0,0.00032017,7]
[339962861,1728229847442,-151.0,0.00032017,7]
[339962862,1728229847455,-151.0,0.00032017,7]
[339962863,1728229847464,-157.37908,0.00032017,7]
[339962864,1728229847473,-151.0,0.00032017,7]
[339962865,1728229847482,-151.0,0.00032017,7]
[339962866,1728229847491,-151.0,0.00032017,7]
[339962867,1728229847500,-151.0,0.00032017,7]
[339962868,1728229847509,-151.0,0.00032017,7]
[339962869,1728229847518,-170.176911,0.00032017,7]
[339962870,1728229847527,-151.0,0.00032017,7]
[339962871,1728229847536,-151.0,0.00032017,7]
[339962872,1728229847546,-151.0,0.00032017,7]
[339962873,1728229847555,-151.0,0.00032017,7]
[339962874,1728229847564,-151.0,0.00032017,7]
[339962875,1728229847573,-151.0,0.00032017,7]
[339962876,1728229847583,-151.0,0.00032017,7]
[339962877,1728229847592,-151.0,0.00032017,7]
[339962878,1728229847602,-263.997446,0.00032017,7]
[339962879,1728229847612,-151.0,0.00032017,7]
[339962880,1728229847621,-151.0,0.00032017,7]
[339962881,1728229847630,-151.0,0.00032017,7]
[339962882,1728229847639,-281.734022,0.00032017,7]
[339962883,1728229847648,-281.734022,0.00032017,7]
[339962884,1728229847658,-281.734022,0.00032017,7]
[339962885,1728229847667,-151.0,0.00032017,7]
[339962886,1728229847676,-151.0,0.00032017,7]
[339962887,1728229847689,-281.734022,0.00032017,7]
[339962888,1728229847698,-151.0,0.00032017,7]
[339962889,1728229847710,-281.734022,0.00032017,7]
[339962890,1728229847719,-281.734022,0.00032017,7]
[339962891,1728229847731,-151.0,0.00032017,7]
[339962892,1728229847741,-151.0,0.00032017,7]
[339962893,1728229847750,-151.0,0.00032017,7]
[339962894,1728229847760,-151.0,0.00032017,7]
[339962895,1728229847769,-151.0,0.00032017,7]
[339962896,1728229847778,-151.0,0.00032017,7]
[339962897,1728229847788,-151.0,0.00032017,7]
[339962898,1728229847798,-151.0,0.00032017,7]
[339962899,1728229847808,-151.0,0.00032017,7]
[339962900,1728229847817,-151.0,0.00032017,7]
[339962901,1728229847826,-151.0,0.00032017,7]
[339962902,1728229847836,-151.0,0.00032017,7]
[339962903,1728229847845,-720.371028,0.00032017,7]
[339962904,1728229847855,-720.371028,0.00032017,7]
[339962905,1728229847864,-720.371028,0.00032017,7]
[339962906,1728229847874,-720.371028,0.00032017,7]
[339962907,1728229847884,-720.371028,0.00032017,7]
[339962908,1728229847893,-720.371028,0.00032017,7]
[339962909,1728229847903,-151.0,0.00032017,7]
[339962910,1728229847912,-151.0,0.00032017,7]
[339962911,1728229847921,-151.0,0.00032017,7]
[339962912,1728229847931,-151.0,0.00032017,7]
[339962913,1728229847942,-151.0,0.00032017,7]
[339962914,1728229847951,-104500.74617672,0.00032017,30]
[339962915,1728229847960,-500.3569,0.00032017,30]
[339962916,1728229847973,-150.0,0.00032017,30]
[339962917,1728229847983,-156.92019328,0.00032017,30]
[339962918,1728229847993,-2000.0,0.00032017,120]
[339962919,1728229848002,-2000.0,0.00032017,120]
[339962920,1728229848013,-2000.0,0.00032017,120]
[339962921,1728229848023,-2000.0,0.00032017,120]
[339962922,1728229848033,-2000.0,0.00032017,120]
[339962923,1728229848042,-2000.0,0.00032017,120]
[339962924,1728229848054,-265.9632809,0.00032017,30]
[339962925,1728229848063,-210.0848732,0.00032017,30]
[339962926,1728229848073,-245.46732855,0.00032017,120]
[339962927,1728229848083,-156.32307225,0.00032017,120]
[339962928,1728229848093,-346.26964951,0.00032017,14]
[339962929,1728229848103,-221.0,0.00032017,120]
[339962930,1728229848114,-933.40894324,0.00032017,120]
[339962931,1728229848124,-10845.35323036,0.00032017,120]
[339962932,1728229848134,-6961.88059471,0.00032017,120]
[339962933,1728229848145,-169582.16758736,0.00032017,2]
[339962934,1728229848155,-124553.09425748,0.00032017,2]
[339962935,1728229848166,-54507.77750952,0.00032017,2]
[339962936,1728229848176,-166252.98179428,0.00032017,2]
[339962937,1728229848186,-150546.31808998,0.00032017,2]
[339962938,1728229848195,-404777.07060411,0.00032017,2]
[339962939,1728229848205,-1109.63592566,0.00032017,2]
[339962940,1728229848215,-571.25730296,0.00032017,2]
[339962941,1728229848226,-5050.0,0.00032017,33]
[339962942,1728229848235,-2004.80145585,0.00032017,120]
[339962943,1728229848245,-1000.0,0.00032017,2]
[339962944,1728229848255,-1000.0,0.00032017,2]
[339962945,1728229848265,-1000.0,0.00032017,2]
[339962946,1728229848275,-1000.0,0.00032017,2]
[339962947,1728229848286,-1000.0,0.00032017,2]
[339962948,1728229848296,-1000.0,0.00032017,2]
[339962949,1728229848305,-630.0,0.00032017,2]
[339962950,1728229848315,-999.0,0.00032017,30]
[339962951,1728229848325,-2000.0,0.00032017,120]
[339962952,1728229848335,-2000.0,0.00032017,120]
[339962953,1728229848344,-2000.0,0.00032017,120]
[339962954,1728229848354,-2000.0,0.00032017,120]
[339962955,1728229848363,-2000.0,0.00032017,120]
[339962956,1728229848373,-2000.0,0.00032017,120]
[339962957,1728229848383,-2000.0,0.00032017,120]
[339962958,1728229848392,-2000.0,0.00032017,120]
[339962959,1728229848402,-2000.0,0.00032017,120]
[339962960,1728229848411,-2000.0,0.00032017,120]
[339962961,1728229848420,-2000.0,0.00032017,120]
[339962962,1728229848431,-2000.0,0.00032017,120]
[339962963,1728229848440,-2088.67501674,0.00032017,120]
[339962964,1728229848450,-500.0,0.00032017,120]
[339962965,1728229848459,-500.0,0.00032017,120]
[339962966,1728229848469,-500.0,0.00032017,120]
[339962967,1728229848478,-500.0,0.00032017,120]
[339962968,1728229848488,-500.0,0.00032017,120]
[339962969,1728229848497,-500.0,0.00032017,120]
[339962970,1728229848506,-500.0,0.00032017,120]
[339962971,1728229848516,-500.0,0.00032017,120]
[339962972,1728229848525,-500.0,0.00032017,120]
[339962973,1728229848534,-500.0,0.00032017,120]
[339962974,1728229848544,-500.0,0.00032017,120]
[339962975,1728229848553,-500.0,0.00032017,120]
[339962976,1728229848562,-500.0,0.00032017,120]
[339962977,1728229848572,-6258.18554132,0.00032017,30]
[339962978,1728229848582,-324.74096817,0.00032017,120]
[339962979,1728229848591,-911.88697551,0.00032017,90]
[339962980,1728229848602,-65152.00376171,0.00032017,30]
[339962981,1728229848612,-1000.0,0.00032017,2]
[339962982,1728229848622,-1000.0,0.00032017,4]
[339962983,1728229848632,-781.39783811,0.00032017,6]
[339962984,1728229848641,-196.95985658,0.00032045,4]
[339962985,1728229848650,-151.0,0.00032062,7]
[339962986,1728229848659,-152.10961,0.00032062,7]
[339962987,1728229848669,-151.0,0.00032062,7]
[339962988,1728229848678,-406.700591,0.00032062,7]
[339962989,1728229848688,-406.700591,0.00032062,7]
[339962990,1728229848698,-406.700591,0.00032062,7]
[339962991,1728229848707,-406.700591,0.00032062,7]
[339962992,1728229848717,-406.700591,0.00032062,7]
[339962993,1728229848727,-406.700591,0.00032062,7]
[339962994,1728229848737,-151.0,0.00032062,7]
[339962995,1728229848747,-151.0,0.00032062,7]
[339962996,1728229848756,-151.0,0.00032062,7]
[339962997,1728229848766,-151.0,0.00032062,7]
[339962998,1728229848775,-151.0,0.00032062,7]
[339962999,1728229848785,-151.0,0.00032062,7]
[339963000,1728229848794,-151.0,0.00032062,7]
[339963001,1728229848803,-151.0,0.00032062,7]
[339963002,1728229848813,-151.0,0.00032062,7]
[339963003,1728229848823,-151.0,0.00032062,7]
[339963004,1728229848833,-151.0,0.00032062,7]
[339963005,1728229848843,-151.0,0.00032062,7]
[339963006,1728229848854,-151.0,0.00032062,7]
[339963007,1728229848864,-153.59745,0.00032062,7]
[339963008,1728229848874,-151.0,0.00032062,7]
[339963009,1728229848883,-151.0,0.00032062,7]
[339963010,1728229848893,-151.0,0.00032062,7]
[339963011,1728229848902,-260.819546,0.00032062,7]
[339963012,1728229848912,-199.489318,0.00032072,7]
[339963013,1728229848922,-150.0,0.00032119,7]
[339963014,1728229848932,-150.0,0.00032148,7]
[339963015,1728229848943,-150.0,0.00032215,7]
[339963016,1728229849036,-247.9709775,0.00032225,7]
[339963017,1728229849058,-1004.38,0.0003232,2]
[339963018,1728229849068,-318.7,0.0003235,2]
[339963019,1728229849077,-150.0,0.00032405,7]
[339963020,1728229849087,-247.9709775,0.00032438,7]
[339963021,1728229849096,-1565.6,0.00032473,120]
[339963022,1728229849106,-150.0,0.00032561,7]
[339963023,1728229849116,-247.9709775,0.00032651,7]
[339963024,1728229849126,-150.0,0.00032662,7]
[339963025,1728229849136,-150.0,0.00032735,120]
[339963026,1728229849145,-247.9709775,0.00032864,7]
[339963027,1728229849155,-790.46527144,0.00032876,2]
[339963028,1728229849165,-390.0117486,0.00032876,120]
[339963029,1728229849174,-186.58,0.00032877,2]
[339963030,1728229849183,-150.0,0.00032906,7]
[339963031,1728229849193,-150.0,0.00032919,7]
[339963032,1728229849203,-150.0,0.00032955,7]
[339963033,1728229849213,-50000.0,0.00033,23]
[339963034,1728229849223,-50000.0,0.00033,33]
[339963035,1728229849234,-162.0,0.00033,120]
[339963036,1728229849245,-800.0,0.00033,2]
[339963037,1728229849255,-501.152222,0.00033,14]
[339963038,1728229849265,-208.0,0.00033,2]
[339963039,1728229849275,-247.9709775,0.00033077,7]
[339963040,1728229849285,-5883.59329245,0.00033141,15]
[339963041,1728229849295,-863.28,0.00033151,120]
[339963042,1728229849305,-150.0,0.00033176,7]
[339963043,1728229849315,-150.0,0.00033252,7]
[339963044,1728229849325,-272.21,0.00033253,2]
[339963045,1728229849334,-502.891655,0.00033285,2]
[339963046,1728229849344,-247.9709775,0.0003329,7]
[339963047,1728229849353,-150.0,0.0003329,7]
[339963048,1728229849363,-150.0,0.00033433,7]
[339963049,1728229849372,-169.1942534,0.00033468,4]
[339963050,1728229849383,-247.9709775,0.00033503,7]
[339963051,1728229849393,-150.0,0.00033583,120]
[339963052,1728229849403,-150.0,0.00033597,7]
[339963053,1728229849413,-754.75,0.00033659,2]
[339963054,1728229849424,-754.75,0.00033659,2]
[339963055,1728229849434,-150.0,0.0003369,7]
[339963056,1728229849445,-3000.0,0.000337,2]
[339963057,1728229849455,-247.9709775,0.00033716,7]
[339963058,1728229849465,-161.57,0.00033873,2]
[339963059,1728229849475,-247.9709775,0.00033929,7]
[339963060,1728229849485,-150.0,0.00033943,7]
[339963061,1728229849495,-150.0,0.00033947,7]
[339963062,1728229849504,-1004.38,0.0003396,2]
[339963063,1728229849514,-50000.0,0.00034,24]
[339963064,1728229849524,-50000.0,0.00034,34]
[339963065,1728229849534,-1000.0,0.00034,120]
[339963066,1728229849544,-406.700591,0.00034,7]
[339963067,1728229849553,-406.700591,0.00034,7]
[339963068,1728229849562,-151.0,0.00034,7]
[339963069,1728229849572,-151.0,0.00034,7]
[339963070,1728229849581,-264.930472,0.00034,7]
[339963071,1728229849591,-151.0,0.00034,7]
[339963072,1728229849601,-151.0,0.00034,7]
[339963073,1728229849612,-151.0,0.00034,7]
[339963074,1728229849621,-151.0,0.00034,7]
[339963075,1728229849631,-247.9709775,0.00034142,7]
[339963076,1728229849641,-150.0,0.00034204,7]
[339963077,1728229849651,-150.0,0.00034288,7]
[339963078,1728229849661,-150.0,0.00034342,120]
[339963079,1728229849670,-358.66,0.00034344,2]
[339963080,1728229849680,-358.66,0.00034344,2]
[339963081,1728229849689,-247.9709775,0.00034355,7]
[339963082,1728229849698,-150.0,0.00034461,7]
[339963083,1728229849708,-150.0,0.00034461,7]
[339963084,1728229849717,-150.0,0.00034461,7]
[339963085,1728229849727,-150.0,0.00034548,10]
[339963086,1728229849737,-247.9709775,0.00034567,7]
[339963087,1728229849746,-752.53,0.00034618,2]
[339963088,1728229849756,-150.0,0.00034634,7]
[339963089,1728229849766,-150.0,0.00034718,7]
[339963090,1728229849775,-247.9709775,0.0003478,7]
[339963091,1728229849786,-150.0,0.00034975,7]
[339963092,1728229849795,-150.0,0.00034979,7]
[339963093,1728229849804,-2000.0,0.0003498,2]
[339963094,1728229849814,-247.9709775,0.00034993,7]
[339963095,1728229849823,-50000.0,0.00035,25]
[339963096,1728229849833,-50000.0,0.00035,35]
[339963097,1728229849843,-900.0,0.00035,120]
[339963098,1728229849852,-346.04676868,0.00035,2]
[339963099,1728229849862,-150.0,0.00035,2]
[339963100,1728229849872,-1281.04833522,0.00035,2]
[339963101,1728229849881,-12018.0,0.00035,2]
[339963102,1728229849890,-151.0,0.00035,7]
[339963103,1728229849900,-151.0,0.00035,7]
[339963104,1728229849910,-151.0,0.00035,7]
[339963105,1728229849919,-151.0,0.00035,7]
[339963106,1728229849929,-282.341384,0.00035,7]
[339963107,1728229849938,-282.341384,0.00035,7]
[339963108,1728229849947,-850.0,0.00035,2]
[339963109,1728229849958,-151.0,0.00035,7]
[339963110,1728229849969,-151.0,0.00035,7]
[339963111,1728229849980,-151.0,0.00035,7]
[339963112,1728229849989,-586.626125,0.00035,7]
[339963113,1728229849998,-586.626125,0.00035,7]
[339963114,1728229850007,-151.0,0.00035,7]
[339963115,1728229850018,-1481.300386,0.00035,7]
[339963116,1728229850028,-1481.300386,0.00035,7]
[339963117,1728229850037,-259.61028,0.00035,7]
[339963118,1728229850048,-151.0,0.00035,7]
[339963119,1728229850057,-259.61028,0.00035,7]
[339963120,1728229850066,-151.0,0.00035,7]
[339963121,1728229850076,-151.0,0.00035,7]
[339963122,1728229850086,-151.0,0.00035,7]
[339963123,1728229850096,-151.0,0.00035,7]
[339963124,1728229850105,-151.0,0.00035,7]
[339963125,1728229850115,-151.0,0.00035,7]
[339963126,1728229850124,-152.549908,0.00035,7]
[339963127,1728229850134,-151.0,0.00035,7]
[339963128,1728229850144,-281.734022,0.00035,7]
[339963129,1728229850153,-151.0,0.00035,7]
[339963130,1728229850162,-281.734022,0.00035,7]
[339963131,1728229850172,-151.0,0.00035,7]
[339963132,1728229850181,-151.0,0.00035,7]
[339963133,1728229850190,-151.0,0.00035,7]
[339963134,1728229850200,-299.517128,0.00035,7]
[339963135,1728229850209,-720.371028,0.00035,7]
[339963136,1728229850218,-720.371028,0.00035,7]
[339963137,1728229850228,-151.0,0.00035,7]
[339963138,1728229850239,-1565.6,0.00035057,120]
[339963139,1728229850249,-358.24,0.00035166,2]
[339963140,1728229850259,-247.9709775,0.00035206,7]
[339963141,1728229850268,-150.0,0.00035232,7]
[339963142,1728229850279,-150.0,0.00035325,7]
[339963143,1728229850291,-247.9709775,0.00035419,7]
[339963144,1728229850301,-5883.59329245,0.00035471,15]
[339963145,1728229850312,-150.0,0.00035489,7]
[339963146,1728229850322,-272.21,0.00035517,2]
[339963147,1728229850332,-1004.38,0.000356,7]
[339963148,1728229850342,-247.9709775,0.00035632,7]
[339963149,1728229850351,-150.0,0.00035632,7]
[339963150,1728229850361,-150.0,0.0003567,7]
[339963151,1728229850370,-150.0,0.00035746,7]
[339963152,1728229850380,-247.9709775,0.00035845,7]
[339963153,1728229850389,-150.0,0.00035967,7]
[339963154,1728229850399,-50000.0,0.00036,26]
[339963155,1728229850408,-50000.0,0.00036,36]
[339963156,1728229850418,-1000.0,0.00036,120]
[339963157,1728229850429,-1171.84904033,0.00036,2]
[339963158,1728229850439,-628.30361704,0.00036,2]
[339963159,1728229850449,-1000.0,0.00036,120]
[339963160,1728229850458,-150.0,0.00036003,7]
[339963161,1728229850467,-150.0,0.00036016,7]
[339963162,1728229850476,-247.9709775,0.00036058,7]
[339963163,1728229850485,-150.0,0.00036062,120]
[339963164,1728229850495,-161.71,0.00036164,2]
[339963165,1728229850505,-150.0,0.0003626,7]
[339963166,1728229850514,-247.9709775,0.00036271,7]
[339963167,1728229850523,-150.0,0.00036361,7]
[339963168,1728229850533,-3000.0,0.000364,2]
[339963169,1728229850543,-247.9709775,0.00036484,7]
[339963170,1728229850552,-150.0,0.00036517,7]
[339963171,1728229850561,-959.1,0.00036525,2]
[339963172,1728229850570,-582.0,0.00036666,120]
[339963173,1728229850579,-169.1942534,0.00036684,4]
[339963174,1728229850588,-247.9709775,0.00036697,7]
[339963175,1728229850597,-150.0,0.00036707,7]
[339963176,1728229850606,-2000.0,0.0003677,2]
[339963177,1728229850615,-150.0,0.00036774,7]
[339963178,1728229850624,-16197.354863,0.00036781,7]
[339963179,1728229850634,-274.69691809,0.00036781,7]
[339963180,1728229850643,-12454.3932934,0.00036781,7]
[339963181,1728229850653,-1843.87485049,0.000368,30]
[339963182,1728229850662,-150.0,0.00036803,7]
[339963183,1728229850671,-247.9709775,0.00036909,7]
[339963184,1728229850681,-50000.0,0.00037,27]
[339963185,1728229850691,-50000.0,0.00037,37]
[339963186,1728229850701,-406.700591,0.00037,7]
[339963187,1728229850710,-406.700591,0.00037,7]
[339963188,1728229850719,-151.0,0.00037,7]
[339963189,1728229850729,-151.0,0.00037,7]
[339963190,1728229850737,-151.0,0.00037,7]
[339963191,1728229850747,-151.0,0.00037,7]
[339963192,1728229850756,-151.0,0.00037,7]
[339963193,1728229850766,-900.0,0.00037,2]
[339963194,1728229850775,-2112.0,0.00037,117]
[339963195,1728229850784,-150.0,0.00037031,7]
[339963196,1728229850794,-150.0,0.00037053,7]
[339963197,1728229850803,-247.9709775,0.00037122,7]
[339963198,1728229850812,-204.62088654,0.000372,103]
[339963199,1728229850821,-1241.069452,0.0003724,20]
[339963200,1728229850830,-150.0,0.00037289,7]
[339963201,1728229850839,-247.9709775,0.00037335,7]
[339963202,1728229850848,-150.0,0.00037398,7]
[339963203,1728229850857,-151.0,0.00037404,2]
[339963204,1728229850866,-6720.44,0.00037496,90]
[339963205,1728229850875,-150.0,0.00037546,7]
[339963206,1728229850884,-247.9709775,0.00037548,7]
[339963207,1728229850893,-4114.454417,0.0003759,2]
[339963208,1728229850903,-1565.6,0.00037641,120]
[339963209,1728229850912,-150.0,0.00037744,7]
[339963210,1728229850921,-247.9709775,0.00037761,7]
[339963211,1728229850930,-272.21,0.00037781,2]
[339963212,1728229850939,-164.88321161,0.000378,2]
[339963213,1728229850948,-5883.59329245,0.00037801,15]
[339963214,1728229850958,-150.0,0.00037803,7]
[339963215,1728229850968,-49766.05547153,0.000379,2]
[339963216,1728229850978,-282.341384,0.000379,7]
[339963217,1728229850987,-282.341384,0.000379,7]
[339963218,1728229850996,-151.0,0.000379,7]
[339963219,1728229851005,-151.0,0.000379,7]
[339963220,1728229851016,-151.0,0.000379,7]
[339963221,1728229851024,-586.626125,0.000379,7]
[339963222,1728229851033,-586.626125,0.000379,7]
[339963223,1728229851043,-151.0,0.000379,7]
[339963224,1728229851053,-1481.300386,0.000379,7]
[339963225,1728229851062,-1481.300386,0.000379,7]
[339963226,1728229851071,-259.61028,0.000379,7]
[339963227,1728229851080,-151.0,0.000379,7]
[339963228,1728229851090,-259.61028,0.000379,7]
[339963229,1728229851100,-242.038962,0.000379,7]
[339963230,1728229851111,-151.0,0.000379,7]
[339963231,1728229851121,-151.0,0.000379,7]
[339963232,1728229851131,-151.0,0.000379,7]
[339963233,1728229851140,-151.0,0.000379,7]
[339963234,1728229851151,-281.734022,0.000379,7]
[339963235,1728229851160,-151.0,0.000379,7]
[339963236,1728229851171,-281.734022,0.000379,7]
[339963237,1728229851181,-151.0,0.000379,7]
[339963238,1728229851191,-151.0,0.000379,7]
[339963239,1728229851202,-151.0,0.000379,7]
[339963240,1728229851212,-720.371028,0.000379,7]
[339963241,1728229851222,-720.371028,0.000379,7]
[339963242,1728229851231,-150.0,0.00037951,120]
[339963243,1728229851241,-247.9709775,0.00037974,7]
[339963244,1728229851252,-150.0,0.00037974,7]
[339963245,1728229851261,-411.0,0.00037986,60]
[339963246,1728229851270,-151.0,0.00037986,7]
[339963247,1728229851278,-151.0,0.00037986,7]
[339963248,1728229851287,-151.0,0.00037986,7]
[339963249,1728229851296,-50000.0,0.00038,28]
[339963250,1728229851306,-50000.0,0.00038,38]
[339963251,1728229851317,-14008.75244069,0.00038,30]
[339963252,1728229851326,-1000.0,0.00038,120]
[339963253,1728229851423,-2007.85,0.00038,30]
[339963254,1728229851434,-10202.41712163,0.00038,60]
[339963255,1728229851446,-150.0,0.0003806,7]
[339963256,1728229851455,-150.0,0.00038089,7]
[339963257,1728229851465,-150.0,0.00038098,120]
[339963258,1728229851474,-247.9709775,0.00038187,7]
[339963259,1728229851483,-9749.22418205,0.00038199,90]
[339963260,1728229851492,-500.0,0.0003825,3]
[339963261,1728229851501,-500.0,0.00038259,3]
[339963262,1728229851511,-500.0,0.00038268,3]
[339963263,1728229851521,-500.0,0.00038268,3]
[339963264,1728229851532,-500.0,0.00038277,3]
[339963265,1728229851541,-500.0,0.00038277,3]
[339963266,1728229851550,-500.0,0.00038286,3]
[339963267,1728229851559,-500.0,0.00038286,3]
[339963268,1728229851567,-500.0,0.00038294,3]
[339963269,1728229851576,-500.0,0.00038295,3]
[339963270,1728229851587,-500.0,0.00038303,3]
[339963271,1728229851596,-500.0,0.00038303,3]
[339963272,1728229851605,-500.0,0.00038312,3]
[339963273,1728229851614,-500.0,0.00038312,3]
[339963274,1728229851623,-150.0,0.00038317,7]
[339963275,1728229851632,-500.0,0.00038321,3]
[339963276,1728229851642,-500.0,0.00038321,3]
[339963277,1728229851651,-500.0,0.00038321,3]
[339963278,1728229851660,-500.0,0.0003833,3]
[339963279,1728229851669,-500.0,0.0003833,3]
[339963280,1728229851678,-500.0,0.0003833,3]
[339963281,1728229851687,-500.0,0.00038338,3]
[339963282,1728229851697,-500.0,0.00038338,3]
[339963283,1728229851706,-500.0,0.00038339,3]
[339963284,1728229851716,-500.0,0.00038347,3]
[339963285,1728229851725,-500.0,0.00038347,3]
[339963286,1728229851734,-500.0,0.00038356,3]
[339963287,1728229851743,-500.0,0.00038356,3]
[339963288,1728229851752,-500.0,0.00038356,30]
[339963289,1728229851762,-508.42691736,0.00038356,2]
[339963290,1728229851771,-500.0,0.00038356,30]
[339963291,1728229851781,-406.700591,0.00038356,7]
[339963292,1728229851791,-406.700591,0.00038356,7]
[339963293,1728229851801,-500.0,0.00038356,30]
[339963294,1728229851810,-502.40103781,0.00038356,30]
[339963295,1728229851820,-500.0,0.00038356,30]
[339963296,1728229851829,-507.97841482,0.00038356,30]
[339963297,1728229851839,-873.34,0.00038356,30]
[339963298,1728229851848,-834.06,0.00038356,30]
[339963299,1728229851857,-196.78364544,0.00038356,30]
[339963300,1728229851866,-500.0,0.00038356,30]
[339963301,1728229851875,-500.0,0.00038356,30]
[339963302,1728229851884,-500.0,0.00038356,2]
[339963303,1728229851893,-300.0,0.00038356,30]
[339963304,1728229851902,-500.0,0.00038356,30]
[339963305,1728229851911,-500.0,0.00038356,30]
[339963306,1728229851920,-500.0,0.00038356,30]
[339963307,1728229851929,-500.0,0.00038356,3]
[339963308,1728229851938,-500.0,0.00038356,30]
[339963309,1728229851950,-502.68393363,0.00038356,30]
[339963310,1728229851960,-512.81255972,0.00038356,30]
[339963311,1728229851972,-500.0,0.00038356,30]
[339963312,1728229851982,-500.0,0.00038356,30]
[339963313,1728229851991,-311.5856174,0.00038356,30]
[339963314,1728229852000,-505.24009587,0.00038356,30]
[339963315,1728229852009,-500.0,0.00038356,30]
[339963316,1728229852018,-500.0,0.00038356,30]
[339963317,1728229852027,-890.77,0.00038356,30]